Workbook

Sheet Zadání
C3: 1. Na listu Cyklický odkaz vytvořte zjednodušenou mapu, ve které hodnota v buňce je průměrem osmi okolních hodnot. Vyplněné buňky nepřepisujte.
C4: 2. Použijte funkci Podmíněné formátování pro barevné zvýraznění rozdílů v buňkách mapy.
C5: 3. Na listu PAHy najdete měsíční koncentrace polyaromatických uhlovodíků v letech 2003-2012.
C6: 4. Aktivujte buňku B3 na listu PAHy a zahajte záznam makra, které pojmenujete Graf.
C7: 5. V režimu záznamu makra vytvořte sloupcový graf o čtyřech sloupcích udávajících koncentrace PAHů dne 15.10.2003, bez legendy s popisy osy x z řádku 2 a názvem grafu odpovídajícím kalendářnímu datu.
C8: 6. Přiřaďte makru klávesovou zkratku Ctrl+Shift+Q.
C9: 7. Přemístěte kurzor do buňky B4 a pomocí klávesové zkratky spusťte makro Graf za účelem vytvoření grafu obsahujícího údaje z řádku 4.
C10: 8. Pokud makro neproběhlo, otevřete okno ditoru Visual Basic a pomocí funkce Debug vyhledejte a pokuste se opravit chybu.
C11: 9. Proběhlo-li makro, komentujte, co bylo vykonáno v rozporu s naším požadavkem.
C12: 10. Využijte funkce ActiveCell.Offset() pro relativizaci příslušných vybraných oblastí tak, aby makro kreslilo vždy graf z vybraného řádku.
C13: 11. Vytvořte pomocí Visual Basic IDE vlastní funkci Prvocislo s jedním argumentem, která vrátí hodnotu 0 pokud není argument prvočíslo a hodnotu 1, pokud je prvočíslo.
C14: 12. Využijte cyklus zadaný příkazem For, funkci Sqr pro odmocninu a funkci Mod pro dělení se zbytkem.
C15: 13. Vytvořte vlastní formulář se čtveřicí tlačítek nazvaných Žlutá, Červená, Modrá a Zelená, po jejichž stisknutí se níže vyznačená buňka zbarví příslušnou barvou.
D17: Tato buňka bude obarvena.

Sheet Cyklický odkaz
C3: Povolte na kartě Vzorce v Možnostech nastavení aplikace Excel iterativní přepočet a nastavte počet iterací na 100.
C4: V mapě 30 × 30 polí níže vložte do prázdných buněk vzorec, který spočítá hodnotu buňky jako průměr okolních 8 buněk.
C5: Buňky u krajů budou průměrem 5 okolních a buňky v rozích 3 okolních buněk.
C6: Použijte funkci Podmíněné formátování pro barevné zvýraznění rozdílů v buňkách mapy.
C8: =AVERAGE(D8,D9,C9) -> 76.00343087 | D8: =AVERAGE(C8,C9:E9,E8) -> 75.96852289 | E8: =AVERAGE(D8,D9:F9,F8) -> 75.87065964 | F8: 75.68163028 | G8: 75.35204988 | H8: 74.80946892 | I8: 73.96336372 | J8: 72.7207513 | K8: 71.01050312 | L8: 68.80626269 | M8: 66.13608927 | N8: 63.07305207 | O8: 59.71300461 | P8: 56.15200332 | Q8: 52.47432969 | R8: 48.75425295 | S8: 45.06901135 | T8: 41.51470028 | U8: 38.21361323 | V8: 35.2987175 | W8: 32.8759575 | X8: 30.98107932 | Y8: 29.56292676 | Z8: 28.50433346 | AA8: 27.66949913 | AB8: 26.94597449 | AC8: 26.26470526 | AD8: 25.59747826 | AE8: 24.94517382 | AF8: 24.32555025 | AG8: 23.76421808 | AH8: 23.28827131 | AI8: 22.92200413 | AJ8: 22.68430411 | AK8: =AVERAGE(AJ8,AJ9,AK9) -> 22.5873348
C9: =AVERAGE(C8:D8,D9,C10:D10) -> 76.03539126 | D9: =AVERAGE(C8:E8,C9,E9,C10:E10) -> 76.00704051 | E9: =AVERAGE(D8:F8,D9,F9,D10:F10) -> 75.92696939 | F9: 75.77000225 | G9: 75.4893236 | H9: 75.01066193 | I9: 74.23276743 | J9: 73.04397811 | K9: =AVERAGE(J8:L8,J9,L9,J10:L10) -> 71.35394559 | L9: 69.12837854 | M9: 66.40320384 | N9: 63.27036803 | O9: 59.84342845 | P9: 56.22702031 | Q9: 52.50309562 | R9: 48.73614754 | S9: 44.98955691 | T9: 41.35127779 | U9: 37.95092359 | V9: 34.95333627 | W9: =AVERAGE(V8:X8,V9,X9,V10:X10) -> 32.50066431 | X9: 30.64692985 | Y9: 29.31990541 | Z9: 28.36343294 | AA9: 27.60701747 | AB9: 26.92792076 | AC9: 26.26197946 | AD9: 25.59148337 | AE9: 24.92541245 | AF9: 24.2873528 | AG9: 23.70703879 | AH9: 23.21435051 | AI9: 22.83523899 | AJ9: 22.58936259 | AK9: =AVERAGE(AJ8:AK8,AJ9,AJ10:AK10) -> 22.48909225
C10: 76.10600441 | D10: =AVERAGE(C9:E9,C10,E10,C11:E11) -> 76.09261259 | E10: 76.05359995 | F10: 75.97254278 | G10: 75.81408247 | H10: 75.5049716 | I10: 74.92006973 | J10: 73.88965925 | K10: =AVERAGE(J9:L9,J10,L10,J11:L11) -> 72.26153924 | L10: 69.97126521 | M10: 67.08499962 | N10: 63.75601046 | O10: 60.15396962 | P10: 56.40283115 | Q10: 52.57434665 | R10: 48.7046892 | S10: 44.82075695 | T10: 40.96647606 | U10: 37.28603641 | V10: 34.02408278 | W10: =AVERAGE(V9:X9,V10,X10,V11:X11) -> 31.47755701 | X10: 29.74854535 | Y10: 28.70974361 | Z10: 28.04325782 | AA10: 27.49185917 | AB10: 26.9110148 | AC10: 26.27253746 | AD10: 25.58600325 | AE10: 24.87991126 | AF10: 24.19172463 | AG10: 23.56120657 | AH10: 23.02507692 | AI10: 22.61320976 | AJ10: 22.34680545 | AK10: =AVERAGE(AJ9:AK9,AJ10,AJ11:AK11) -> 22.23838943
C11: 76.19465324 | D11: 76.20096943 | E11: 76.21712519 | F11: 76.24237702 | G11: 76.26768305 | H11: 76.25589435 | I11: 76.0500606 | J11: 75.37331035 | K11: =AVERAGE(J10:L10,J11,L11,J12:L12) -> 73.88233191 | L11: 71.4501701 | M11: 68.20628871 | N11: 64.4950695 | O11: 60.59153944 | P11: 56.6462972 | Q11: 52.6837773 | R11: 48.69174983 | S11: 44.63891807 | T11: 40.4880663 | U11: 36.20708108 | V11: 32.34783747 | W11: =AVERAGE(V10:X10,V11,X11,V12:X12) -> 29.4700098 | X11: 28.12985638 | Y11: 27.73455776 | Z11: 27.69240448 | AA11: 27.42816944 | AB11: 26.96276498 | AC11: 26.33705009 | AD11: 25.60332408 | AE11: 24.8176198 | AF11: 24.03770315 | AG11: 23.31891876 | AH11: 22.70887879 | AI11: 22.24318304 | AJ11: 21.94420301 | AK11: 21.82319062
C12: 76.27454906 | D12: 76.29976356 | E12: 76.37028287 | F12: 76.50567359 | G12: 76.73882373 | H12: 77.10786573 | I12: 77.64432712 | J12: 77.70507686 | K12: =AVERAGE(J11:L11,J12,L12,J13:L13) -> 76.63407833 | L12: 73.77420857 | M12: 69.78731939 | N12: 65.33197308 | O12: 61.04920154 | P12: 56.89774214 | Q12: 52.81777103 | R12: 48.73560289 | S12: 44.55894591 | T12: 40.14585031 | U12: 35.28122502 | V12: 29.11777928 | W12: =AVERAGE(V11:X11,V12,X12,V13:X13) -> 25.91959239 | X12: 24.99549418 | Y12: 26.98409547 | Z12: 27.57392042 | AA12: 27.57460199 | AB12: 27.17659025 | AC12: 26.51142729 | AD12: 25.67392831 | AE12: 24.74935262 | AF12: 23.82028651 | AG12: 22.9639098 | AH12: 22.24389059 | AI12: 21.70297745 | AJ12: 21.36177494 | AK12: 21.2254502
C13: 76.32053357 | D13: 76.35744478 | E13: 76.46336683 | F13: 76.6763422 | G13: 77.0701613 | H13: 77.78532888 | I13: 79.0513325 | J13: 81.82636559 | K13: =AVERAGE(J12:L12,J13,L13,J14:L14) -> 81.17936943 | L13: 77.88233279 | M13: 71.17235611 | N13: 65.98679943 | O13: 61.3679195 | P13: 57.07702355 | Q13: 52.94918538 | R13: 48.8615793 | S13: 44.68368216 | T13: 40.22688315 | U13: 35.08272076 | V13: 28.63421769 | W13: 10 | X13: =AVERAGE(W12:Y12,W13,Y13,W14:Y14) -> 24.66199349 | Y13: 27.06439472 | Z13: 28.02093983 | AA13: 28.09311617 | AB13: 27.64991611 | AC13: 26.85675115 | AD13: 25.83222328 | AE13: 24.68485072 | AF13: 23.52608997 | AG13: 22.46507615 | AH13: 21.59168084 | AI13: 20.95775891 | AJ13: 20.57371687 | AK13: 20.42499066
C14: 76.31775426 | D14: 76.35376131 | E14: 76.46034388 | F14: 76.68410189 | G14: 77.11873492 | H14: 77.94512992 | I14: 79.6069072 | J14: 82.79021919 | K14: 100 | L14: 78.82303814 | M14: 71.6887151 | N14: 66.10506965 | O14: =AVERAGE(N13:P13,N14,P14,N15:P15) -> 61.39252249 | P14: 57.10375312 | Q14: 53.03885082 | R14: 49.06193068 | S14: 45.04743327 | T14: 40.83197899 | U14: 36.18393185 | V14: 30.24052123 | W14: 27.24841005 | X14: =AVERAGE(W13:Y13,W14,Y14,W15:Y15) -> 26.49444776 | Y14: 28.59017471 | Z14: 29.19486168 | AA14: 29.09322939 | AB14: 28.46182431 | AC14: 27.43280459 | AD14: 26.11635893 | AE14: 24.63341164 | AF14: 23.12827783 | AG14: 21.76469387 | AH14: 20.68293024 | AI14: 19.95336875 | AJ14: 19.55289778 | AK14: 19.41168673
C15: 76.26885565 | D15: 76.28876654 | E15: 76.35380281 | F15: 76.50592523 | G15: 76.82487111 | H15: 77.45871214 | I15: 78.64562721 | J15: 81.3530913 | K15: =AVERAGE(J14:L14,J15,L15,J16:L16) -> 80.65944043 | L15: 77.34563313 | M15: 70.65698703 | N15: 65.53810509 | O15: =AVERAGE(N14:P14,N15,P15,N16:P16) -> 61.03782176 | P15: 56.92440147 | Q15: 53.04304179 | R15: 49.29064706 | S15: 45.5817813 | T15: 41.84172385 | U15: 38.00838355 | V15: 34.6056817 | W15: 32.16145604 | X15: =AVERAGE(W14:Y14,W15,Y15,W16:Y16) -> 31.18960687 | Y15: 31.0402515 | Z15: 31.0556754 | AA15: 30.60195412 | AB15: 29.66845159 | AC15: 28.29932581 | AD15: 26.57857865 | AE15: 24.61394462 | AF15: 22.58800167 | AG15: 20.75119073 | AH15: 19.38534135 | AI15: 18.59537271 | AJ15: 18.28830029 | AK15: 18.21904405
C16: 76.19750536 | D16: 76.18706649 | E16: 76.1718012 | F16: 76.17939887 | G16: 76.25506577 | H16: 76.45258435 | I16: 76.82141484 | J16: 76.73753714 | K16: =AVERAGE(J15:L15,J16,L16,J17:L17) -> 75.56412774 | L16: 72.66241747 | M16: 68.71091801 | N16: 64.38262303 | O16: =AVERAGE(N15:P15,N16,P16,N17:P17) -> 60.33085104 | P16: 56.52595204 | Q16: 52.92314797 | R16: 49.476395 | S16: 46.15334299 | T16: 42.95153824 | U16: 39.9761225 | V16: 37.43627201 | W16: 35.59104704 | X16: =AVERAGE(W15:Y15,W16,Y16,W17:Y17) -> 34.48636046 | Y16: 33.90543236 | Z16: 33.40621644 | AA16: 32.61408971 | AB16: 31.32213426 | AC16: 29.52313945 | AD16: 27.29223426 | AE16: 24.7183464 | AF16: 21.85728349 | AG16: 19.23778636 | AH16: 17.36611579 | AI16: 16.73217363 | AJ16: 16.80276805 | AK16: 17.04002479
C17: 76.1474081 | D17: 76.09599016 | E17: 75.97314092 | F17: 75.79104417 | G17: 75.56024539 | H17: 75.26842392 | I17: 74.78696126 | J17: 73.86899741 | K17: =AVERAGE(J16:L16,J17,L17,J18:L18) -> 72.20123255 | L17: 69.68526692 | M17: 66.47634442 | N17: 62.94060477 | O17: =AVERAGE(N16:P16,N17,P17,N18:P18) -> 59.37001977 | P17: 55.92797557 | Q17: 52.65107428 | R17: 49.54642892 | S17: 46.62243538 | T17: 43.91653351 | U17: 41.51271569 | V17: 39.53685547 | W17: 38.09863174 | X17: =AVERAGE(W16:Y16,W17,Y17,W18:Y18) -> 37.21422925 | Y17: 36.6909529 | Z17: 36.16090363 | AA17: 35.18123019 | AB17: 33.51693801 | AC17: 31.17276268 | AD17: 28.33553552 | AE17: 25.09709904 | AF17: 21.38493864 | AG17: 16.46775559 | AH17: 14.10240703 | AI17: 13.65761926 | AJ17: 15.66022356 | AK17: 16.23019701
C18: 76.17784218 | D18: 76.07917955 | E18: 75.83469476 | F18: 75.446659 | G18: 74.90803902 | H18: 74.18142038 | I18: 73.18231169 | J18: 71.78363254 | K18: =AVERAGE(J17:L17,J18,L18,J19:L19) -> 69.87538126 | L18: 67.43311728 | M18: 64.5592221 | N18: 61.43722725 | O18: =AVERAGE(N17:P17,N18,P18,N19:P19) -> 58.25829428 | P18: 55.1573131 | Q18: 52.20785445 | R18: 49.4442456 | S18: 46.89366518 | T18: 44.59806871 | U18: 42.62511502 | V18: 41.06195224 | W18: 39.99371333 | X18: 39.46934118 | Y18: 39.47906017 | Z18: 39.40677336 | AA18: =AVERAGE(Z17:AB17,Z18,AB18,Z19:AB19) -> 38.60416366 | AB18: 36.41932657 | AC18: 33.29939332 | AD18: 29.67417275 | AE18: 25.90792921 | AF18: 21.60712919 | AG18: 16.18688154 | AH18: 0 | AI18: =AVERAGE(AH17:AJ17,AH18,AJ18,AH19:AJ19) -> 13.17139921 | AJ18: 15.42640549 | AK18: 16.22194581
C19: 76.35809908 | D19: 76.20905813 | E19: 75.8378958 | F19: 75.24527538 | G19: 74.42361067 | H19: 73.34829404 | I19: 71.97412358 | J19: 70.24727399 | K19: =AVERAGE(J18:L18,J19,L19,J20:L20) -> 68.13340306 | L19: 65.6507473 | M19: 62.88396446 | N19: 59.96713707 | O19: =AVERAGE(N18:P18,N19,P19,N20:P20) -> 57.0428774 | P19: 54.22386247 | Q19: 51.577228 | R19: 49.13540685 | S19: 46.92058621 | T19: 44.96634188 | U19: 43.3278883 | V19: 42.08129585 | W19: 41.32012715 | X19: 41.16798254 | Y19: 41.79071212 | Z19: 43.93221762 | AA19: =AVERAGE(Z18:AB18,Z19,AB19,Z20:AB20) -> 43.41553823 | AB19: 40.80096676 | AC19: 35.36425709 | AD19: 31.11189183 | AE19: 27.10526714 | AF19: 22.94814932 | AG19: 17.75969775 | AH19: 15.22546568 | AI19: =AVERAGE(AH18:AJ18,AH19,AJ19,AH20:AJ20) -> 14.67731227 | AJ19: 16.62244383 | AK19: 17.17084515
C20: 76.763406 | D20: 76.56151151 | E20: 76.06050025 | F20: 75.26694669 | G20: 74.18450846 | H20: 72.80838506 | I20: 71.12458642 | J20: 69.117708 | K20: =AVERAGE(J19:L19,J20,L20,J21:L21) -> 66.78766079 | L20: 64.1723132 | M20: 61.3615243 | N20: 58.49103792 | O20: =AVERAGE(N19:P19,N20,P20,N21:P21) -> 55.70356774 | P20: 53.10521226 | Q20: 50.73920414 | R20: 48.605398 | S20: 46.69576674 | T20: 45.02650749 | U20: 43.64385964 | V20: 42.6206918 | W20: 42.0577399 | X20: 42.10900228 | Y20: 43.12482699 | Z20: 45.63707959 | AA20: 60 | AB20: =AVERAGE(AA19:AC19,AA20,AC20,AA21:AC21) -> 42.52418373 | AC20: 36.78135114 | AD20: =AVERAGE(AC19:AE19,AC20,AE20,AC21:AE21) -> 32.30345412 | AE20: 28.46005802 | AF20: 24.83011728 | AG20: 21.72885272 | AH20: 19.55171011 | AI20: =AVERAGE(AH19:AJ19,AH20,AJ20,AH21:AJ21) -> 18.72860393 | AJ20: 18.69324407 | AK20: 18.89059767
C21: 77.47419534 | D21: 77.21464208 | E21: 76.57492577 | F21: 75.57437413 | G21: 74.23510653 | H21: 72.57469343 | I21: 70.60276915 | J21: 68.32404847 | K21: =AVERAGE(J20:L20,J21,L21,J22:L22) -> 65.74839472 | L21: 62.90798528 | M21: 59.90540568 | N21: 56.91417884 | O21: =AVERAGE(N20:P20,N21,P21,N22:P22) -> 54.15022522 | P21: 51.73459951 | Q21: 49.67074358 | R21: 47.86182007 | S21: 46.24309484 | T21: 44.80767007 | U21: 43.60756194 | V21: 42.71363883 | W21: 42.21414035 | X21: 42.23574263 | Y21: 42.96141282 | Z21: 45.16506179 | AA21: 44.70729596 | AB21: 42.18945374 | AC21: 36.93523211 | AD21: =AVERAGE(AC20:AE20,AC21,AE21,AC22:AE22) -> 33.02207724 | AE21: 29.64827447 | AF21: 26.7120402 | AG21: 24.27941796 | AH21: 22.5250495 | AI21: =AVERAGE(AH20:AJ20,AH21,AJ21,AH22:AJ22) -> 21.49012085 | AJ21: 21.04434323 | AK21: 20.92255848
C22: 78.57985737 | D22: 78.2520056 | E22: 77.45132548 | F22: 76.21869077 | G22: 74.60357869 | H22: 72.65026288 | I22: 70.38893471 | J22: 67.83411306 | K22: =AVERAGE(J21:L21,J22,L22,J23:L23) -> 64.98879111 | L22: 61.85509593 | M22: 58.44523871 | N22: 55.09639751 | O22: =AVERAGE(N21:P21,N22,P22,N23:P23) -> 52.16055128 | P22: 49.99678253 | Q22: 48.35106215 | R22: 46.97246275 | S22: 45.61746256 | T22: 44.35834055 | U22: 43.26946199 | V22: 42.42103633 | W22: 41.87533528 | X22: 41.68064576 | Y22: 41.8635267 | Z22: 41.87606742 | AA22: 41.15092187 | AB22: 39.11625475 | AC22: 36.30110404 | AD22: =AVERAGE(AC21:AE21,AC22,AE22,AC23:AE23) -> 33.24475043 | AE22: 30.50321698 | AF22: 28.11134253 | AG22: 26.13592753 | AH22: 24.64120797 | AI22: =AVERAGE(AH21:AJ21,AH22,AJ22,AH23:AJ23) -> 23.64547506 | AJ22: 23.09226704 | AK22: 22.89282146
C23: 80.18831852 | D23: 79.77053566 | E23: 78.76278884 | F23: 77.24318788 | G23: 75.30478892 | H23: 73.02807742 | I23: 70.46470681 | J23: 67.63335576 | K23: =AVERAGE(J22:L22,J23,L23,J24:L24) -> 64.52244477 | L23: 61.08541675 | M23: 57.23759151 | N23: 52.56030155 | O23: =AVERAGE(N22:P22,N23,P23,N24:P24) -> 49.39812123 | P23: 47.43423501 | Q23: 47.07519764 | R23: 46.06319495 | S23: 44.89772843 | T23: 43.736036 | U23: 42.68838848 | V23: 41.82372625 | W23: 41.17675355 | X23: 40.73771942 | Y23: 40.38125349 | Z23: 39.87102555 | AA23: 38.90876265 | AB23: 37.37419879 | AC23: 35.36385366 | AD23: =AVERAGE(AC22:AE22,AC23,AE23,AC24:AE24) -> 33.16384285 | AE23: 31.0212774 | AF23: 29.10304361 | AG23: 27.48848498 | AH23: 26.22780003 | AI23: =AVERAGE(AH22:AJ22,AH23,AJ23,AH24:AJ24) -> 25.33837301 | AJ23: 24.80563753 | AK23: 24.59981278
C24: 82.44455471 | D24: 81.89500813 | E24: 80.59091689 | F24: 78.68113721 | G24: 76.33278141 | H24: 73.68110791 | I24: 70.79897583 | J24: 67.70334508 | K24: =AVERAGE(J23:L23,J24,L24,J25:L25) -> 64.3660466 | L24: 60.7138902 | M24: 56.55470193 | N24: 51.59010154 | O24: 40 | P24: 46.34688939 | Q24: 46.14562453 | R24: 45.29183563 | S24: 44.1547623 | T24: =AVERAGE(S23:U23,S24,U24,S25:U25) -> 42.98835954 | U24: 41.91444823 | V24: 40.99639113 | W24: 40.24870815 | X24: =AVERAGE(W23:Y23,W24,Y24,W25:Y25) -> 39.63119464 | Y24: 39.04507898 | Z24: 38.34552414 | AA24: 37.39784324 | AB24: 36.13906746 | AC24: 34.61662092 | AD24: =AVERAGE(AC23:AE23,AC24,AE24,AC25:AE25) -> 32.95586904 | AE24: 31.30497022 | AF24: 29.78414086 | AG24: 28.47597816 | AH24: 27.42945567 | AI24: =AVERAGE(AH23:AJ23,AH24,AJ24,AH25:AJ25) -> 26.66853518 | AJ24: 26.19765751 | AK24: 26.01121778
C25: 85.56777578 | D25: 84.80145537 | E25: 83.03414641 | F25: 80.53951529 | G25: 77.64142725 | H25: 74.54347954 | I25: 71.33510762 | J25: 68.00311371 | K25: 64.50349482 | L25: 60.76378511 | M25: 56.67808733 | N25: 51.80883857 | O25: 48.48345178 | P25: 46.37078634 | Q25: 45.86812494 | R25: 44.71522723 | S25: 43.41538592 | T25: 42.1309397 | U25: 40.96983411 | V25: 39.98258874 | W25: 39.16738627 | X25: 38.47463374 | Y25: 37.81877498 | Z25: 37.10128144 | AA25: 36.24097591 | AB25: 35.20274543 | AC25: 34.00841151 | AD25: =AVERAGE(AC24:AE24,AC25,AE25,AC26:AE26) -> 32.72589087 | AE25: 31.4430374 | AF25: 30.24365057 | AG25: 29.19370991 | AH25: 28.33859435 | AI25: =AVERAGE(AH24:AJ24,AH25,AJ25,AH26:AJ26) -> 27.70524758 | AJ25: 27.30660976 | AK25: 27.14692907
C26: 89.89673381 | D26: 88.8013882 | E26: 86.18147182 | F26: 82.7826529 | G26: 79.07198962 | H26: 75.49918013 | I26: 71.987712 | J26: 68.4644045 | K26: 64.86628539 | L26: 61.14754562 | M26: 57.28067159 | N26: 53.56557921 | O26: 50.31852017 | P26: 47.86731681 | Q26: 45.93682359 | R26: 44.27100238 | S26: 42.63880984 | T26: =AVERAGE(S25:U25,S26,U26,S27:U27) -> 41.13274223 | U26: 39.83380175 | V26: 38.78005958 | W26: 37.950769 | X26: 37.27546342 | Y26: 36.6604431 | Z26: 36.01736047 | AA26: 35.2850643 | AB26: 34.43977057 | AC26: 33.49509825 | AD26: =AVERAGE(AC25:AE25,AC26,AE26,AC27:AE27) -> 32.49315921 | AE26: 31.49093174 | AF26: 30.54669825 | AG26: 29.71078675 | AH26: 29.02145563 | AI26: =AVERAGE(AH25:AJ25,AH26,AJ26,AH27:AJ27) -> 28.50469275 | AJ26: 28.17610485 | AK26: 28.04362822
C27: 96.25104354 | D27: 94.06219563 | E27: 90.61654579 | F27: 84.81417666 | G27: 80.36229492 | H27: 76.39357414 | I27: 72.65826721 | J27: 69.00499934 | K27: 65.35669773 | L27: 61.68668874 | M27: 58.04509885 | N27: 54.55019077 | O27: 51.36021819 | P27: 48.54223706 | Q27: 46.05885377 | R27: 43.80155137 | S27: 41.73378373 | T27: =AVERAGE(S26:U26,S27,U27,S28:U28) -> 39.91041663 | U27: 38.42956532 | V27: 37.33489682 | W27: 36.57229613 | X27: 36.01952364 | Y27: 35.54061328 | Z27: 35.03666373 | AA27: 34.45587484 | AB27: 33.78668904 | AC27: 33.04419328 | AD27: =AVERAGE(AC26:AE26,AC27,AE27,AC28:AE28) -> 32.26085709 | AE27: 31.47782853 | AF27: 30.7373505 | AG27: 30.07735009 | AH27: 29.52858029 | AI27: =AVERAGE(AH26:AJ26,AH27,AJ27,AH28:AJ28) -> 29.11380817 | AJ27: 28.84828708 | AK27: 28.74079321
C28: 98.49499427 | D28: 110 | E28: =AVERAGE(D27:F27,D28,F28,D29:F29) -> 92.25554557 | F28: 86.03514389 | G28: 81.20807089 | H28: 77.09391833 | I28: 73.26753996 | J28: 69.55521378 | K28: 65.88429722 | L28: 62.24458362 | M28: 58.66877567 | N28: 55.21720923 | O28: 51.94591618 | P28: 48.87525181 | Q28: 45.97548767 | R28: 43.2016683 | S28: 40.59650712 | T28: 38.31811391 | U28: =AVERAGE(T27:V27,T28,V28,T29:V29) -> 36.60057073 | V28: 35.52650872 | W28: 34.98622529 | X28: 34.70558488 | Y28: 34.46549902 | Z28: 34.14511501 | AA28: 33.72412771 | AB28: 33.21303631 | AC28: 32.63721767 | AD28: =AVERAGE(AC27:AE27,AC28,AE28,AC29:AE29) -> 32.02863362 | AE28: 31.42075725 | AF28: 30.8452516 | AG28: 30.33025709 | AH28: 29.89951927 | AI28: =AVERAGE(AH27:AJ27,AH28,AJ28,AH29:AJ29) -> 29.57190496 | AJ28: 29.36107715 | AK28: 29.27545731
C29: 97.16107904 | D29: =AVERAGE(C28:E28,C29,E29,C30:E30) -> 95.00072895 | E29: =AVERAGE(D28:F28,D29,F29,D30:F30) -> 91.61910556 | F29: 85.89669593 | G29: 81.50899033 | H29: 77.56009059 | I29: 73.79286967 | J29: 70.08176612 | K29: 66.39567703 | L29: 62.74917651 | M29: 59.17069995 | N29: 55.68701543 | O29: 52.3102299 | P29: 49.02546031 | Q29: 45.78410502 | R29: 42.51527436 | S29: 39.14828626 | T29: 36.14346538 | U29: =AVERAGE(T28:V28,T29,V29,T30:V30) -> 33.98282433 | V29: 33.15930322 | W29: 33.14695408 | X29: 33.42535115 | Y29: 33.4888842 | Z29: 33.3629708 | AA29: 33.08704209 | AB29: 32.70642463 | AC29: 32.26355721 | AD29: =AVERAGE(AC28:AE28,AC29,AE29,AC30:AE30) -> 31.79523229 | AE29: 31.33035947 | AF29: 30.89153362 | AG29: 30.49761892 | AH29: 30.16594375 | AI29: =AVERAGE(AH28:AJ28,AH29,AJ29,AH30:AJ30) -> 29.91182178 | AJ29: 29.7473614 | AK29: 29.68035817
C30: 91.67199483 | D30: =AVERAGE(C29:E29,C30,E30,C31:E31) -> 90.63781321 | E30: =AVERAGE(D29:F29,D30,F30,D31:F31) -> 88.16549859 | F30: 84.96164836 | G30: 81.41982504 | H30: 77.89682112 | I30: 74.29301167 | J30: 70.5949489 | K30: 66.87095418 | L30: 63.18488772 | M30: 59.57397319 | N30: 56.04043525 | O30: 52.56935731 | P30: 49.1216789 | Q30: 45.62214739 | R30: 41.93636213 | S30: 37.8581099 | T30: 32.61724108 | U30: =AVERAGE(T29:V29,T30,V30,T31:V31) -> 30.02650171 | V30: 29.47132755 | W30: 31.53400337 | X30: 32.3678888 | Y30: 32.70839827 | Z30: 32.73094258 | AA30: 32.55447121 | AB30: 32.25999459 | AC30: 31.91273241 | AD30: =AVERAGE(AC29:AE29,AC30,AE30,AC31:AE31) -> 31.55601421 | AE30: 31.21347221 | AF30: 30.8929321 | AG30: 30.60263708 | AH30: 30.35395213 | AI30: =AVERAGE(AH29:AJ29,AH30,AJ30,AH31:AJ31) -> 30.16096098 | AJ30: 30.0350099 | AK30: 29.9834745
C31: 88.11554608 | D31: =AVERAGE(C30:E30,C31,E31,C32:E32) -> 87.44496146 | E31: =AVERAGE(D30:F30,D31,F31,D32:F32) -> 85.92380705 | F31: 83.83945669 | G31: 81.32005172 | H31: 78.37510831 | I31: 74.90491017 | J31: 71.13790058 | K31: 67.28286204 | L31: 63.54081152 | M31: 59.89537608 | N31: 56.32383694 | O31: 52.79346598 | P31: 49.25322089 | Q31: 45.61593417 | R31: 41.72562747 | S31: 37.22187543 | T31: 31.55716181 | U31: 15 | V31: 28.28098939 | W31: 30.6404084 | X31: 31.78033196 | Y31: 32.21937586 | Z31: 32.29208135 | AA31: 32.13498249 | AB31: 31.86201363 | AC31: 31.55943739 | AD31: =AVERAGE(AC30:AE30,AC31,AE31,AC32:AE32) -> 31.29993242 | AE31: 31.07420472 | AF31: 30.8684673 | AG31: 30.66614563 | AH31: 30.48555727 | AI31: =AVERAGE(AH30:AJ30,AH31,AJ31,AH32:AJ32) -> 30.34204069 | AJ31: 30.24714782 | AK31: 30.20808158
C32: 85.62622871 | D32: =AVERAGE(C31:E31,C32,E32,C33:E33) -> 85.19689739 | E32: =AVERAGE(D31:F31,D32,F32,D33:F33) -> 84.2221292 | F32: 82.92227607 | G32: 81.7806387 | H32: 79.36486293 | I32: 76.02098537 | J32: 71.55592496 | K32: 67.57994134 | L32: 63.79791098 | M32: 60.14100814 | N32: 56.56059539 | O32: 53.01695598 | P32: 49.46213259 | Q32: 45.82458521 | R32: 41.98220322 | S32: 37.74426539 | T32: 32.35444848 | U32: =AVERAGE(T31:V31,T32,V32,T33:V33) -> 29.63515232 | V32: 28.97700263 | W32: 30.96397241 | X32: 31.74827213 | Y32: 32.06091665 | Z32: 32.06678712 | AA32: 31.8613967 | AB32: 31.45277574 | AC32: 31.16091219 | AD32: =AVERAGE(AC31:AE31,AC32,AE32,AC33:AE33) -> 30.97174457 | AE32: 30.9516555 | AF32: 30.84025199 | AG32: 30.70738722 | AH32: 30.57901259 | AI32: =AVERAGE(AH31:AJ31,AH32,AJ32,AH33:AJ33) -> 30.47341649 | AJ32: 30.40240484 | AK32: 30.37295299
C33: 83.83552085 | D33: =AVERAGE(C32:E32,C33,E33,C34:E34) -> 83.53838953 | E33: 82.86882449 | F33: 82.04264318 | G33: 81.38086241 | H33: 85 | I33: 76.13651328 | J33: 71.69287922 | K33: 67.69172881 | L33: 63.9398881 | M33: 60.3120885 | N33: 56.75800581 | O33: 53.24449714 | P33: 49.74038004 | Q33: 46.20851537 | R33: 42.60915978 | S33: 38.90814129 | T33: 35.59595744 | U33: =AVERAGE(T32:V32,T33,V33,T34:V34) -> 33.17347698 | V33: 32.14263863 | W33: 31.97988283 | X33: 32.16279592 | Y33: 32.17907061 | Z33: 32.03921445 | AA33: 31.74784846 | AB33: 31.29601381 | AC33: 30 | AD33: =AVERAGE(AC32:AE32,AC33,AE33,AC34:AE34) -> 30.84580562 | AE33: 30.88255042 | AF33: 30.83108471 | AG33: 30.74144453 | AH33: 30.64814958 | AI33: =AVERAGE(AH32:AJ32,AH33,AJ33,AH34:AJ34) -> 30.56904096 | AJ33: 30.51510399 | AK33: 30.49260421
C34: 82.5272255 | D34: 82.28903991 | E34: 81.74148389 | F34: 80.99796275 | G34: 80.42717571 | H34: 78.51149472 | I34: 75.56137508 | J34: 71.3848509 | K34: 67.61203569 | L34: 63.97077353 | M34: 60.41403283 | N34: 56.91494053 | O34: 53.46039993 | P34: 50.04305636 | Q34: 46.66339749 | R34: 43.34371114 | S34: 40.19895872 | T34: 37.43692157 | U34: 35.31679184 | V34: 33.92941407 | W34: 33.16595097 | X34: 32.74957833 | Y34: 32.45530779 | Z34: 32.15028652 | AA34: 31.79268502 | AB34: 31.32416616 | AC34: 31.02872387 | AD34: 30.87047362 | AE34: 30.90105241 | AF34: 30.84913085 | AG34: 30.77612191 | AH34: 30.70142365 | AI34: =AVERAGE(AH33:AJ33,AH34,AJ34,AH35:AJ35) -> 30.63842108 | AJ34: 30.59551172 | AK34: 30.57762038
C35: 81.59909934 | D35: =AVERAGE(C34:E34,C35,E35,C36:E36) -> 81.37425915 | E35: 80.82775669 | F35: 79.99323079 | G35: 78.70195175 | H35: 76.78949167 | I35: 74.0948402 | J35: 70.88122278 | K35: 67.40854726 | L35: 63.92677238 | M35: 60.46151018 | N35: 57.02873097 | O35: 53.64073175 | P35: 50.31334895 | Q35: 47.07368557 | R35: 43.97583617 | S35: 41.11251281 | T35: 38.60995191 | U35: 36.58011139 | V35: 35.06640536 | W35: 34.01061454 | X35: 33.28685676 | Y35: 32.75674121 | Z35: 32.31852003 | AA35: 31.91350182 | AB35: 31.5525073 | AC35: 31.26263731 | AD35: 31.07882255 | AE35: 30.96492533 | AF35: 30.88645319 | AG35: 30.81033582 | AH35: 30.74195534 | AI35: =AVERAGE(AH34:AJ34,AH35,AJ35,AH36:AJ36) -> 30.68698463 | AJ35: 30.6503067 | AK35: 30.63514375
C36: =AVERAGE(C35:D35,D36,C37:D37) -> 81.01821128 | D36: =AVERAGE(C35:E35,C36,E36,C37:E37) -> 80.78694565 | E36: 80.20455688 | F36: 79.23481965 | G36: 77.81038659 | H36: 75.85130947 | I36: 73.35767785 | J36: 70.42160729 | K36: 67.20919226 | L36: 63.86230469 | M36: 60.47619908 | N36: 57.09877476 | O36: 53.76373183 | P36: 50.50336427 | Q36: 47.3589335 | R36: 44.38835721 | S36: 41.66766226 | T36: 39.27924122 | U36: 37.28796299 | V36: 35.71476201 | W36: 34.52620943 | X36: 33.64632853 | Y36: 32.98472534 | Z36: 32.46293751 | AA36: 32.03259158 | AB36: 31.67494644 | AC36: 31.391456 | AD36: 31.18070021 | AE36: 31.03137825 | AF36: 30.9222391 | AG36: 30.83737005 | AH36: 30.76899294 | AI36: =AVERAGE(AH35:AJ35,AH36,AJ36,AH37:AJ37) -> 30.71705143 | AJ36: 30.6833145 | AK36: 30.6695297
C37: =AVERAGE(C36,D36,D37) -> 80.78400834 | D37: =AVERAGE(C36:E36,C37,E37) -> 80.54693035 | E37: =AVERAGE(D36:F36,D37,F37) -> 79.94099207 | F37: 78.93177129 | G37: 77.46816712 | H37: 75.51261878 | I37: 73.07562942 | J37: 70.23501829 | K37: 67.11107803 | L37: 63.82736973 | M37: 60.4781846 | N37: 57.12639161 | O37: 53.81519018 | P37: 50.58381526 | Q37: 47.47798674 | R37: 44.55559637 | S37: 41.88517744 | T37: 39.53516797 | U37: 37.55593666 | V37: 35.96269307 | W37: 34.72874166 | X37: 33.79386593 | Y37: 33.08347827 | Z37: 32.52969034 | AA37: 32.08487895 | AB37: 31.72439491 | AC37: 31.43827772 | AD37: 31.22008172 | AE37: 31.058805 | AF37: 30.93985341 | AG37: 30.8497203 | AH37: 30.78040686 | AI37: 30.72917168 | AJ37: 30.69637164 | AK37: =AVERAGE(AJ36,AK36,AJ37) -> 30.68307195

Sheet List1

Sheet PAHy
B2: middle date | C2: fluorene | D2: phenantrene | E2: fluoranthene | F2: pyrene
B3: 2003-10-15 | C3: 434.4 | D3: 1091.8 | E3: 297.4 | F3: 156.2
B4: 2003-11-12 | C4: 479 | D4: 1425.8 | E4: 327.2 | F4: 158.2
B5: 2003-12-10 | C5: 705.8 | D5: 2222.2 | E5: 635.6 | F5: 335.4
B6: 2004-01-07 | C6: 1069.4 | D6: 3792.4 | E6: 1030.4 | F6: 483.6
B7: 2004-02-04 | C7: 630.8 | D7: 2142 | E7: 674.2 | F7: 266
B8: 2004-03-03 | C8: 745 | D8: 2181.8 | E8: 639.2 | F8: 243.2
B9: 2004-03-31 | C9: 246.8 | D9: 786 | E9: 266 | F9: 126.4
B10: 2004-04-28 | C10: 126.8 | D10: 464.4 | E10: 142.4 | F10: 72
B11: 2004-05-26 | C11: 89.6 | D11: 269.4 | E11: 68 | F11: 36
B12: 2004-06-26 | C12: 55.85714 | D12: 163.2 | E12: 44.92857 | F12: 21.85714
B13: 2004-07-27 | C13: 5.6 | D13: 55.8 | E13: 27.2 | F13: 13
B14: 2004-08-24 | C14: 37.4 | D14: 108.8 | E14: 32.6 | F14: 15.8
B15: 2004-09-21 | C15: 143.4464 | D15: 408.5893 | E15: 130.5 | F15: 73.43214
B16: 2004-10-20 | C16: 442.7679 | D16: 1328.614 | E16: 405.4821 | F16: 205.9
B17: 2004-12-01 | C17: 1853.5 | D17: 5524.357 | E17: 1273.643 | F17: 691.4286
B18: 2005-01-12 | C18: 898.2 | D18: 2967 | E18: 823.2 | F18: 501.8
B19: 2005-02-09 | C19: 688 | D19: 1893.1 | E19: 460.8 | F19: 241.2
B20: 2005-03-09 | C20: 569.8 | D20: 1817.6 | E20: 494.6 | F20: 204.4
B21: 2005-04-06 | C21: 216.6 | D21: 700.4 | E21: 306.6 | F21: 348.6
B22: 2005-05-04 | C22: 64.7 | D22: 193.8 | E22: 84.8 | F22: 106.4
B23: 2005-06-01 | C23: 140 | D23: 363.6 | E23: 103.4 | F23: 42.6
B24: 2005-06-29 | C24: 138.2 | D24: 296 | E24: 60 | F24: 23.2
B25: 2005-07-27 | C25: 94.4 | D25: 293.2 | E25: 82.4 | F25: 52.6
B26: 2005-08-24 | C26: 97.4 | D26: 272.6 | E26: 111.6 | F26: 193.2
B27: 2005-09-21 | C27: 58 | D27: 137.8 | E27: 61 | F27: 38
B28: 2005-10-19 | C28: 417.6 | D28: 1066.8 | E28: 414.65 | F28: 275.75
B29: 2005-11-16 | C29: 1354.44 | D29: 3156.52 | E29: 741.52 | F29: 506.96
B30: 2005-12-14 | C30: 1261.38 | D30: 3246.14 | E30: 1107.68 | F30: 541.28
B31: 2006-01-11 | C31: 1003.46 | D31: 2293.98 | E31: 418.36 | F31: 181.86
B32: 2006-02-08 | C32: 1392.1 | D32: 3389.92 | E32: 614.42 | F32: 241.46
B33: 2006-03-08 | C33: 612.78 | D33: 2507.74 | E33: 499.36 | F33: 148.04
B34: 2006-04-05 | C34: 387.66 | D34: 1367.14 | E34: 296.56 | F34: 125.48
B35: 2006-05-03 | C35: 125.82 | D35: 445.32 | E35: 113.7 | F35: 50.56
B36: 2006-05-31 | C36: 99.02 | D36: 299.24 | E36: 77.92 | F36: 32.96
B37: 2006-06-28 | C37: 82.24 | D37: 221.26 | E37: 58.48 | F37: 24.84
B38: 2006-07-26 | C38: 84.34 | D38: 214.3 | E38: 86.8 | F38: 138.36
B39: 2006-08-23 | C39: 53.8 | D39: 148.12 | E39: 43.16 | F39: 23.18
B40: 2006-09-20 | C40: 75.02 | D40: 171.46 | E40: 56.1 | F40: 29.92
B41: 2006-10-18 | C41: 210.02 | D41: 571.12 | E41: 164.94 | F41: 93.08
B42: 2006-11-15 | C42: 390.46 | D42: 1202.36 | E42: 335.4 | F42: 179.3
B43: 2006-12-13 | C43: 663.28 | D43: 1860.88 | E43: 471.92 | F43: 258.4
B44: 2007-01-10 | C44: 218.5 | D44: 880.88 | E44: 342 | F44: 169.54
B45: 2007-02-07 | C45: 390.56 | D45: 1066.46 | E45: 372.42 | F45: 204.44
B46: 2007-03-07 | C46: 256.72 | D46: 843.62 | E46: 272.12 | F46: 30.8
B47: 2007-04-04 | C47: 176.7 | D47: 501.2 | E47: 171.88 | F47: 76.38
B48: 2007-05-02 | C48: 102.68 | D48: 317.36 | E48: 109.42 | F48: 51.34
B49: 2007-05-30 | C49: 51.4 | D49: 146.42 | E49: 38.1 | F49: 18.64
B50: 2007-06-27 | C50: 33.7 | D50: 80.08 | E50: 1.68 | F50: 3.74
B51: 2007-07-26 | C51: 37.37143 | D51: 90.38571 | E51: 29.29286 | F51: 12.49286
B52: 2007-08-23 | C52: 62.52071 | D52: 157.7736 | E52: 44.23714 | F52: 23.52071
B53: 2007-09-19 | C53: 122.84 | D53: 316.76 | E53: 121.74 | F53: 51.6
B54: 2007-10-17 | C54: 342.74 | D54: 842.74 | E54: 262.22 | F54: 150.16
B55: 2007-11-14 | C55: 441 | D55: 1279.46 | E55: 365.48 | F55: 195.86
B56: 2007-12-12 | C56: 849.75 | D56: 2461.21 | E56: 671.87 | F56: 322.11
B57: 2008-01-24 | C57: 1239.186667 | D57: 4255.458667 | E57: 1081.509333 | F57: 494.536
B58: 2008-02-21 | C58: 826.1723077 | D58: 2899.615385 | E58: 784.0215385 | F58: 370.9138462
B59: 2008-03-19 | C59: 355.26 | D59: 1239.34 | E59: 352.12 | F59: 161.86
B60: 2008-04-16 | C60: 216.18 | D60: 675.02 | E60: 201.28 | F60: 97.66
B61: 2008-05-14 | C61: 95.54 | D61: 317.94 | E61: 101.84 | F61: 53.78
B62: 2008-06-11 | C62: 42.4 | D62: 119.78 | E62: 42.74 | F62: 28.34
B63: 2008-07-09 | C63: 72.84 | D63: 222.62 | E63: 56.12 | F63: 23.6
B64: 2008-08-06 | C64: 48.66 | D64: 138.98 | E64: 46.1 | F64: 20.6
B65: 2008-09-03 | C65: 87.6 | D65: 183.1 | E65: 52.64 | F65: 28.6
B66: 2008-10-01 | C66: 213.96 | D66: 632.76 | E66: 185.58 | F66: 98.6
B67: 2008-10-29 | C67: 264.94 | D67: 841.78 | E67: 224.68 | F67: 108.92
B68: 2008-11-26 | C68: 445.9 | D68: 1351.58 | E68: 377.06 | F68: 179.62
B69: 2008-12-24 | C69: 1119.28 | D69: 2743.32 | E69: 674.6 | F69: 307.32
B70: 2009-01-21 | C70: 1295.32 | D70: 3065.78 | E70: 707.46 | F70: 282.98
B71: 2009-02-18 | C71: 534.74 | D71: 1619.68 | E71: 442.78 | F71: 174.32
B72: 2009-03-18 | C72: 209.2 | D72: 672.92 | E72: 202.78 | F72: 86.78
B73: 2009-04-15 | C73: 55.1 | D73: 174.22 | E73: 59.56 | F73: 26.44
B74: 2009-05-13 | C74: 33.86 | D74: 113.64 | E74: 38.7 | F74: 18.14
B75: 2009-06-10 | C75: 22 | D75: 67.28 | E75: 17.52 | F75: 8.98
B76: 2009-07-08 | C76: 18.1 | D76: 61.18 | E76: 18.32 | F76: 9.14
B77: 2009-08-05 | C77: 14.46 | D77: 38.58 | E77: 12.42 | F77: 5.98
B78: 2009-09-02 | C78: 32.76 | D78: 73.88 | E78: 22.9 | F78: 12.22
B79: 2009-09-30 | C79: 892.38 | D79: 2980.52 | E79: 941.66 | F79: 571.8
B80: 2009-10-28 | C80: 460.58 | D80: 1177.08 | E80: 322.8 | F80: 166.56
B81: 2009-11-25 | C81: 233.56 | D81: 813.18 | E81: 251.38 | F81: 137.94
B82: 2009-12-23 | C82: 701.78 | D82: 1846.8 | E82: 446.48 | F82: 188.56
B83: 2010-01-20 | C83: 723.06 | D83: 1738.92 | E83: 412.08 | F83: 147.18
B84: 2010-02-17 | C84: 680.8 | D84: 1673.4 | E84: 407.86 | F84: 136.6
B85: 2010-03-17 | C85: 263.6 | D85: 935.38 | E85: 308.34 | F85: 113.88
B86: 2010-04-14 | C86: 114.54 | D86: 351.1 | E86: 145.84 | F86: 68.88
B87: 2010-05-12 | C87: 106.82 | D87: 366.72 | E87: 131.46 | F87: 60.66
B88: 2010-06-09 | C88: 130.66 | D88: 390.4 | E88: 149.66 | F88: 74.76
B89: 2010-07-07 | C89: 72.98 | D89: 186.02 | E89: 76.72 | F89: 31.64
B90: 2010-08-04 | C90: 49.84 | D90: 143.77 | E90: 41.07 | F90: 20.69
B91: 2010-09-01 | C91: 82.84 | D91: 271.67 | E91: 93.84 | F91: 54.88
B92: 2010-09-29 | C92: 298.48 | D92: 737.94 | E92: 242.38 | F92: 128.54
B93: 2010-10-27 | C93: 154.96 | D93: 439.28 | E93: 139.64 | F93: 70.96
B94: 2010-11-24 | C94: 655.94 | D94: 1517.62 | E94: 358.42 | F94: 186.5
B95: 2010-12-22 | C95: 664.88 | D95: 1762.74 | E95: 444.56 | F95: 193.7
B96: 2011-01-19 | C96: 729.64 | D96: 1852.7 | E96: 469.72 | F96: 198.7
B97: 2011-02-16 | C97: 759.36 | D97: 1624.26 | E97: 392.5 | F97: 155.88
B98: 2011-03-16 | C98: 332.7 | D98: 966.56 | E98: 291.5 | F98: 124.04
B99: 2011-04-13 | C99: 174.68 | D99: 561.18 | E99: 152.64 | F99: 65.9
B100: 2011-05-11 | C100: 90.36 | D100: 275.96 | E100: 98.66 | F100: 48.26
B101: 2011-06-08 | C101: 153.44 | D101: 474.48 | E101: 180.44 | F101: 84.36
B102: 2011-07-06 | C102: 166.52 | D102: 487.88 | E102: 208.24 | F102: 88.16
B103: 2011-08-03 | C103: 24.3 | D103: 69.5 | E103: 22.08 | F103: 11.1
B104: 2011-08-31 | C104: 43.88 | D104: 108.08 | E104: 45.46 | F104: 24.02
B105: 2011-09-28 | C105: 147.12 | D105: 404.78 | E105: 130.4 | F105: 76.04
B106: 2011-10-26 | C106: 619.3 | D106: 1704.62 | E106: 683.82 | F106: 343.44
B107: 2011-11-23 | C107: 827.76 | D107: 2544.88 | E107: 803.26 | F107: 435.34
B108: 2011-12-21 | C108: 412.06 | D108: 1650.82 | E108: 601.74 | F108: 318.38
B109: 2012-01-18 | C109: 941.72 | D109: 2271.6 | E109: 749.66 | F109: 363.66
B110: 2012-02-15 | C110: 1006.72 | D110: 3190.76 | E110: 968.4 | F110: 416.74
B111: 2012-03-14 | C111: 272.56 | D111: 957.26 | E111: 368.26 | F111: 184.08
B112: 2012-04-11 | C112: 155.52 | D112: 540.64 | E112: 226.58 | F112: 109.46
B113: 2012-05-09 | C113: 49.94 | D113: 173.58 | E113: 94.66 | F113: 39.88
B114: 2012-06-06 | C114: 34.16 | D114: 92.12 | E114: 35.28 | F114: 12.7
B115: 2012-07-04 | C115: 38.06 | D115: 103.9 | E115: 38.22 | F115: 19.2
B116: 2012-08-01 | C116: 32.36 | D116: 78.34 | E116: 28.94 | F116: 13.2
B117: 2012-08-29 | C117: 53.76 | D117: 132.04 | E117: 43.5 | F117: 25.84
B118: 2012-09-26 | C118: 64.88 | D118: 205.48 | E118: 73.48 | F118: 45.1
B119: 2012-10-24 | C119: 272 | D119: 857.42 | E119: 292.28 | F119: 146.46
B120: 2012-11-21 | C120: 453.8 | D120: 1301.6 | E120: 445.2 | F120: 220.62
